bitfinex/quotes_BTCUSD_20241208
["timestamp","ask_amount","ask_price","bid_price","bid_amount"]
[1733649368549,0.14006788,99315.0,99314.0,0.79916308]
[1733649369183,0.14006788,99315.0,99314.0,0.26402951]
[1733649369418,0.14006788,99315.0,99314.0,0.4397577]
[1733649369625,0.14006788,99315.0,99314.0,0.61934115]
[1733649370271,0.14006788,99315.0,99314.0,0.57905115]
[1733649370476,0.14006788,99315.0,99314.0,0.75963115]
[1733649370912,0.14006788,99315.0,99314.0,0.57905115]
[1733649371110,0.14006788,99315.0,99314.0,0.75975388]
[1733649371522,0.14006788,99315.0,99314.0,0.57905115]
[1733649373289,0.14006788,99315.0,99314.0,0.11402951]
[1733649373494,0.14718746,99315.0,99314.0,0.11402951]
[1733649374319,0.14718746,99315.0,99314.0,0.26402951]
[1733649377822,0.14718746,99315.0,99314.0,0.25902951]
[1733649378232,0.14718746,99315.0,99314.0,0.25402951]
[1733649378438,0.44925746,99315.0,99314.0,0.25402951]
[1733649378648,0.44925746,99315.0,99314.0,0.25002951]
[1733649379530,0.44925746,99315.0,99314.0,0.25802951]
[1733649380086,0.44925746,99315.0,99314.0,0.26202951]
[1733649380293,0.44925746,99315.0,99314.0,0.25402951]
[1733649380506,0.44925746,99315.0,99314.0,0.25602951]
[1733649381123,0.44925746,99315.0,99314.0,0.25802951]
[1733649388591,0.44925746,99315.0,99314.0,0.57506014]
[1733649388794,0.40015746,99315.0,99314.0,0.80100549]
[1733649389000,0.31825746,99315.0,99314.0,0.57506014]
[1733649389781,0.31825746,99315.0,99314.0,0.56706014]
[1733649390003,0.31825746,99315.0,99314.0,0.57006014]
[1733649390206,0.31825746,99315.0,99314.0,0.57806014]
[1733649390431,0.31825746,99315.0,99314.0,0.57006014]
[1733649390858,0.31825746,99315.0,99314.0,0.57906014]
[1733649391070,0.31825746,99315.0,99314.0,0.57606014]
[1733649391457,0.31825746,99315.0,99314.0,0.58006014]
[1733649391666,0.31825746,99315.0,99314.0,0.57106014]
[1733649392232,0.26378763,99315.0,99314.0,0.72266014]
[1733649392434,0.25784346,99315.0,99314.0,0.43709828]
[1733649392645,0.25784346,99315.0,99314.0,0.43309828]
[1733649392859,0.26258441,99315.0,99314.0,0.43309828]
[1733649393056,0.26258441,99315.0,99314.0,0.43709828]
[1733649393263,0.26258441,99315.0,99314.0,0.41462951]
[1733649393520,0.26258441,99315.0,99314.0,0.41062951]
[1733649393733,0.26258441,99315.0,99314.0,0.40162951]
[1733649393941,0.26558441,99315.0,99314.0,0.42183903]
[1733649394158,0.26558441,99315.0,99314.0,0.42283903]
[1733649394376,0.097,99337.0,99316.0,0.05]
[1733649394580,0.097,99337.0,99336.0,0.43123251]
[1733649394794,0.097,99337.0,99336.0,0.75285579]
[1733649395041,0.097,99337.0,99336.0,0.57165279]
[1733649395252,0.1459,99337.0,99336.0,0.25002951]
[1733649395910,0.1459,99337.0,99336.0,0.10002951]
[1733649396354,0.1459,99337.0,99336.0,0.10502951]
[1733649396782,0.1459,99337.0,99336.0,0.10902951]
[1733649396995,0.1459,99337.0,99336.0,0.10202951]
[1733649397228,0.1459,99337.0,99336.0,0.10902951]
[1733649397441,0.4479,99337.0,99336.0,0.10702951]
[1733649397651,0.4479,99337.0,99336.0,0.10002951]
[1733649397851,0.4479,99337.0,99336.0,0.10502951]
[1733649400323,0.399,99337.0,99336.0,0.25502951]
[1733649400765,0.399,99337.0,99336.0,0.25102951]
[1733649400970,0.4,99337.0,99336.0,0.25902951]
[1733649401195,0.4,99337.0,99336.0,0.26202951]
[1733649401391,0.4,99337.0,99336.0,0.38853745]
[1733649401392,0.399,99337.0,99336.0,0.38853745]
[1733649402250,0.399,99337.0,99336.0,0.70390523]
[1733649402471,0.399,99337.0,99336.0,0.38553502]
[1733649402672,0.4,99337.0,99336.0,0.39353502]
[1733649402876,0.399,99337.0,99336.0,0.39537991]
[1733649403083,0.399,99337.0,99336.0,0.25989019]
[1733649403287,0.4,99337.0,99336.0,0.3632186]
[1733649403461,0.4,99337.0,99336.0,0.27289019]
[1733649404531,0.4,99337.0,99336.0,0.40837991]
[1733649405137,0.4,99337.0,99336.0,0.27289019]
[1733649405339,0.4,99337.0,99336.0,0.40837991]
[1733649405560,0.4,99337.0,99336.0,0.27289019]
[1733649407470,0.4486,99337.0,99336.0,0.11302951]
[1733649408609,0.4486,99337.0,99336.0,0.10902951]
[1733649408812,0.4476,99337.0,99336.0,0.10002951]
[1733649409239,0.4486,99337.0,99336.0,0.10902951]
[1733649409486,0.4486,99337.0,99336.0,0.11302951]
[1733649409686,0.4486,99337.0,99336.0,0.26302951]
[1733649409905,0.4486,99337.0,99336.0,0.25902951]
[1733649410337,0.4486,99337.0,99336.0,0.26202951]
[1733649420215,0.4486,99337.0,99336.0,0.11202951]
[1733649422264,0.4476,99337.0,99336.0,0.10002951]
[1733649422697,0.4486,99337.0,99336.0,0.11002951]
[1733649423567,0.44059675,99337.0,99336.0,0.11002951]
[1733649432276,0.44059675,99337.0,99336.0,0.20036389]
[1733649433360,0.44059675,99337.0,99336.0,0.11002951]
[1733649434387,0.44059675,99337.0,99336.0,0.24553108]
[1733649435034,0.44059675,99337.0,99336.0,0.11002951]
[1733649436486,0.43579481,99337.0,99336.0,0.11002951]
[1733649438919,0.44599793,99337.0,99336.0,0.11002951]
[1733649439127,0.43579481,99337.0,99336.0,0.11002951]
[1733649440216,0.53579481,99337.0,99336.0,0.11002951]
[1733649441177,0.54240167,99337.0,99336.0,0.11002951]
[1733649441355,0.54240167,99337.0,99336.0,0.10002951]
[1733649441625,0.56142284,99337.0,99336.0,0.10002951]
[1733649441828,0.55481598,99337.0,99336.0,0.10802951]
[1733649445675,0.55481598,99337.0,99336.0,0.008]
[1733649445880,0.62781598,99337.0,99336.0,0.008]
[1733649449417,0.63241253,99337.0,99336.0,0.008]
[1733649449841,0.68241253,99337.0,99336.0,0.008]
[1733649450042,0.231212,99331.0,99330.0,0.0008655]
[1733649450287,0.382312,99331.0,99330.0,0.0008655]
[1733649450497,0.68890186,99331.0,99330.0,0.0008655]
[1733649451367,0.69190186,99331.0,99330.0,0.0008655]
[1733649452923,0.69490186,99331.0,99330.0,0.0008655]
[1733649459679,0.69490186,99331.0,99330.0,0.00012537]
[1733649461457,0.62190186,99331.0,99330.0,0.00012537]
[1733649462286,0.61890186,99331.0,99330.0,0.00012537]
[1733649462762,0.61790186,99331.0,99330.0,0.00012537]
[1733649464031,0.61990186,99331.0,99330.0,0.00012537]
[1733649486150,0.39218986,99331.0,99330.0,0.10015488]
[1733649486352,0.31058986,99331.0,99330.0,0.10015488]
[1733649486561,0.31058986,99331.0,99330.0,0.25015488]
[1733649486766,0.31058986,99331.0,99330.0,0.47648408]
[1733649486986,0.31058986,99331.0,99330.0,0.57685577]
[1733649487411,0.30658986,99331.0,99330.0,0.57685577]
[1733649487679,0.31058986,99331.0,99330.0,0.65545577]
[1733649487889,0.30858986,99331.0,99330.0,0.65545577]
[1733649488103,0.30658986,99331.0,99330.0,0.92684375]
[1733649488327,0.30658986,99331.0,99330.0,0.93084105]
[1733649488526,0.30658986,99331.0,99330.0,0.65645577]
[1733649488718,0.30758986,99331.0,99330.0,0.66345577]
[1733649488929,0.30758986,99331.0,99330.0,0.66245577]
[1733649489361,0.303,99331.0,99330.0,0.66545577]
[1733649489834,0.303,99331.0,99330.0,0.6756723]
[1733649490104,0.30660073,99331.0,99330.0,1.2900723]
[1733649490333,0.30760073,99331.0,99330.0,1.47887221]
[1733649490546,0.402,99331.0,99330.0,1.2896112]
[1733649490764,0.402,99331.0,99330.0,1.47341125]
[1733649491005,0.402,99331.0,99330.0,1.3016112]
[1733649491006,0.403,99331.0,99330.0,1.3016112]
[1733649491236,0.403,99331.0,99330.0,1.2986112]
[1733649491462,0.40760073,99331.0,99330.0,1.2986112]
[1733649491662,0.40760073,99331.0,99330.0,1.47934751]
[1733649491876,0.40760073,99331.0,99330.0,1.48334751]
[1733649492083,0.403,99331.0,99330.0,1.48334347]
[1733649492540,0.403,99331.0,99330.0,1.3026112]
[1733649492746,0.403,99331.0,99330.0,1.48334347]
[1733649493159,0.403,99331.0,99330.0,1.3026112]
[1733649493402,0.40760073,99331.0,99330.0,1.3026112]
[1733649494248,0.403,99331.0,99330.0,0.82337141]
[1733649494700,0.40760815,99331.0,99330.0,0.82337141]
[1733649496664,0.40760815,99331.0,99330.0,0.81315488]
[1733649497062,0.58882015,99331.0,99330.0,0.81315488]
[1733649499511,0.67192015,99331.0,99330.0,0.71312537]
[1733649499919,0.71882015,99331.0,99330.0,0.70912537]
[1733649500233,0.71782015,99331.0,99330.0,0.70012537]
[1733649500667,0.71782015,99331.0,99330.0,0.70312537]
[1733649501095,0.74082015,99331.0,99330.0,0.70412537]
[1733649501344,0.84082015,99331.0,99330.0,0.70412537]
[1733649501612,0.84082015,99331.0,99330.0,0.70368622]
[1733649502461,0.86136407,99331.0,99330.0,0.70368622]
[1733649502675,0.86136407,99331.0,99330.0,0.69968622]
[1733649503108,0.86136407,99331.0,99330.0,0.70168622]
[1733649503309,0.86136407,99331.0,99330.0,0.69968622]
[1733649503703,0.86536407,99331.0,99330.0,0.69968622]
[1733649503945,0.86436407,99331.0,99330.0,0.69968622]
[1733649504159,0.87835987,99331.0,99330.0,0.69968622]
[1733649504366,0.82835987,99331.0,99330.0,0.69968622]
[1733649504589,0.87835987,99331.0,99330.0,0.69968622]
[1733649505223,0.82835987,99331.0,99330.0,0.69968622]
[1733649505911,0.77135987,99331.0,99330.0,0.70055202]
[1733649506087,0.81536407,99331.0,99330.0,0.70055202]
[1733649506324,0.81436407,99331.0,99330.0,0.70055202]
[1733649506740,0.79382015,99331.0,99330.0,0.70055202]
[1733649506950,0.74382015,99331.0,99330.0,0.70055202]
[1733649507191,0.72282015,99331.0,99330.0,0.70055202]
[1733649509980,0.59282015,99331.0,99330.0,0.70055202]
[1733649510180,0.67592015,99331.0,99330.0,0.70055202]
[1733649513089,0.69892015,99331.0,99330.0,0.70055202]
[1733649513299,0.79892015,99331.0,99330.0,0.70055202]
[1733649513980,0.94723549,99331.0,99330.0,0.70055202]
[1733649514398,0.84742015,99331.0,99330.0,0.70055202]
[1733649515028,0.84742015,99331.0,99330.0,0.59987702]
[1733649515233,0.85729888,99331.0,99330.0,0.59987702]
[1733649515613,0.85729888,99331.0,99330.0,0.37993702]
[1733649515823,0.95732839,99331.0,99330.0,0.33878136]
[1733649516034,1.20714373,99331.0,99330.0,0.14983436]
[1733649516491,1.20714373,99331.0,99330.0,0.10956236]
[1733649516883,1.20414373,99331.0,99330.0,0.04915136]
[1733649517039,1.20214373,99331.0,99330.0,0.04915136]
[1733649517240,1.20814373,99331.0,99330.0,0.02295896]
[1733649517531,1.20814373,99331.0,99330.0,9.6e-07]
[1733649518350,1.21014373,99331.0,99330.0,9.6e-07]
[1733649518568,1.74384373,99331.0,99330.0,9.6e-07]
[1733649518948,1.74184373,99331.0,99330.0,9.6e-07]
[1733649519118,1.74484373,99331.0,99330.0,9.6e-07]
[1733649519789,0.1,99311.0,99310.0,0.00043503]
[1733649519961,0.5018,99311.0,99310.0,0.00043503]
[1733649520164,0.50679841,99311.0,99310.0,0.00043503]
[1733649521301,0.45679841,99311.0,99310.0,0.00043503]
[1733649521673,0.30699841,99311.0,99310.0,0.00043503]
[1733649521983,0.30699841,99311.0,99310.0,0.00243503]
[1733649523225,0.30699841,99311.0,99310.0,0.10246454]
[1733649524429,0.302,99311.0,99310.0,0.10046454]
[1733649524747,0.30705695,99311.0,99310.0,0.10146454]
[1733649525091,0.30705695,99311.0,99310.0,0.10646454]
[1733649530819,0.30705695,99311.0,99310.0,0.10046454]
[1733649531041,0.30705695,99311.0,99310.0,0.10146454]
[1733649531266,0.30705695,99311.0,99310.0,0.10046454]
[1733649531738,0.30705695,99311.0,99310.0,0.10446454]
[1733649531959,0.30705695,99311.0,99310.0,0.10546454]
[1733649533467,0.30705695,99311.0,99310.0,0.00543503]
[1733649539284,0.30705695,99311.0,99310.0,0.10546454]
[1733649539724,0.30705695,99311.0,99310.0,0.09946454]
[1733649540585,0.30705695,99311.0,99310.0,0.10033044]
[1733649541710,0.30705695,99311.0,99310.0,0.17953044]
[1733649542127,0.302,99311.0,99310.0,0.32953044]
[1733649542551,0.30706477,99311.0,99310.0,0.32953044]
[1733649542759,0.30706477,99311.0,99310.0,0.41972242]
[1733649542760,0.302,99311.0,99310.0,0.41972242]
[1733649542983,0.30706477,99311.0,99310.0,0.41972242]
[1733649543417,0.30706477,99311.0,99310.0,0.32953044]
[1733649543892,0.302,99311.0,99310.0,0.46481841]
[1733649544071,0.302,99311.0,99310.0,0.46581841]
[1733649544326,0.30706297,99311.0,99310.0,0.46881841]
[1733649544545,0.30706297,99311.0,99310.0,0.66417341]
[1733649545392,0.30706297,99311.0,99310.0,0.66817341]
[1733649546787,0.30706297,99311.0,99310.0,0.72454801]
[1733649546994,0.30706297,99311.0,99310.0,0.25533044]
[1733649547224,0.302,99311.0,99310.0,0.25533044]
[1733649547430,0.3070662,99311.0,99310.0,0.25533044]
[1733649547837,0.3070662,99311.0,99310.0,0.34571566]
[1733649549263,0.3070662,99311.0,99310.0,0.19571566]
[1733649549470,0.3070662,99311.0,99310.0,0.10533044]
[1733649552726,0.3020662,99311.0,99310.0,0.10533044]
[1733649556525,0.3020662,99311.0,99310.0,0.33213044]
[1733649556772,0.3020662,99311.0,99310.0,0.46772076]
[1733649556981,0.3020662,99311.0,99310.0,0.55811432]
[1733649557185,0.297,99311.0,99310.0,0.89177068]
[1733649557394,0.30206465,99311.0,99310.0,0.89177068]
[1733649558294,0.30206465,99311.0,99310.0,0.6657868]
[1733649558478,0.30206465,99311.0,99310.0,0.84654752]
[1733649558867,0.297,99311.0,99310.0,0.84654752]
[1733649559284,0.297,99311.0,99310.0,0.84554752]
[1733649559430,0.29704,99311.0,99310.0,0.84554752]
[1733649559630,0.29704,99311.0,99310.0,0.84754752]
[1733649559840,0.29704,99311.0,99310.0,0.84354752]
[1733649560268,0.29704,99311.0,99310.0,0.84954752]
[1733649561307,0.29704,99311.0,99310.0,0.85952212]
[1733649561527,0.29704,99311.0,99310.0,0.6787614]
[1733649561754,0.29704,99311.0,99310.0,0.90474528]
[1733649561989,0.30210465,99311.0,99310.0,0.90474528]
[1733649562213,0.30210465,99311.0,99310.0,0.6787614]
[1733649563533,0.29704,99311.0,99310.0,0.6787614]
[1733649563952,0.30210807,99311.0,99310.0,0.6787614]
[1733649564408,0.29704,99311.0,99310.0,0.7254614]
[1733649565031,0.1,99312.0,99311.0,0.331248]
[1733649565241,0.1,99312.0,99311.0,1.03603185]
[1733649565442,0.1,99312.0,99311.0,0.84633387]
[1733649566056,0.1,99312.0,99311.0,0.83172696]
[1733649566886,0.1,99312.0,99311.0,0.84072696]
[1733649567094,0.1,99312.0,99311.0,0.84572696]
[1733649567506,0.1,99312.0,99311.0,0.86872696]
[1733649567922,0.1,99312.0,99311.0,0.86867109]
[1733649568994,0.1,99312.0,99311.0,1.20417109]
[1733649573557,0.10004,99312.0,99311.0,1.20417109]
[1733649573706,0.10004,99312.0,99311.0,1.19517109]
[1733649573918,0.10304,99312.0,99311.0,1.19617109]
[1733649574725,0.10304,99312.0,99311.0,1.19117109]
[1733649574928,0.00463904,99312.0,99311.0,1.46186711]
[1733649575130,0.00463904,99312.0,99311.0,1.19217109]
[1733649575558,0.00463904,99312.0,99311.0,1.19117109]
[1733649575977,0.00463904,99312.0,99311.0,1.19217109]
[1733649576218,0.00163904,99312.0,99311.0,1.19117109]
[1733649576420,0.00163904,99312.0,99311.0,1.19017109]
[1733649576840,0.00163904,99312.0,99311.0,1.19217109]
[1733649577311,0.00163904,99312.0,99311.0,1.19117109]
[1733649577698,0.00163904,99312.0,99311.0,1.19217109]
[1733649585158,0.00010146,99312.0,99311.0,1.19217109]
[1733649585563,0.00010146,99312.0,99311.0,1.63752592]
[1733649585705,0.00010146,99312.0,99311.0,1.18551692]
[1733649586909,0.00010146,99312.0,99311.0,1.08111692]
[1733649587367,0.00010146,99312.0,99311.0,0.59561692]
[1733649587798,0.00010146,99312.0,99311.0,0.82125177]
[1733649588189,0.00010146,99312.0,99311.0,0.59461692]
[1733649588619,0.00010146,99312.0,99311.0,0.97025177]
[1733649589023,0.00010146,99312.0,99311.0,0.92513904]
[1733649589453,0.00010146,99312.0,99311.0,0.92413904]
[1733649589880,0.00110146,99312.0,99311.0,0.93313904]
[1733649590502,0.00110146,99312.0,99311.0,0.93813904]
[1733649592613,0.00110146,99312.0,99311.0,0.75761692]
[1733649593615,0.0466,99329.0,99311.0,0.75761692]
[1733649593616,0.16094826,99330.0,99317.0,0.181237]
[1733649593832,0.16094826,99330.0,99318.0,0.25002951]
[1733649594606,0.181208,99334.0,99318.0,0.25002951]
[1733649594952,0.362416,99334.0,99319.0,0.181234]
[1733649595200,0.362416,99334.0,99320.0,0.25002951]
[1733649596296,0.362416,99334.0,99320.0,0.25302951]
[1733649596503,0.362416,99334.0,99327.0,0.03]
[1733649596711,0.1256,99330.0,99328.0,0.10002951]
[1733649597560,0.0762,99330.0,99328.0,0.10002951]
[1733649598105,0.0762,99330.0,99328.0,0.10102951]
[1733649598301,0.0762,99330.0,99328.0,0.10402951]
[1733649598570,0.0762,99330.0,99329.0,0.181215]
[1733649598715,0.0762,99330.0,99329.0,0.28124451]
[1733649599995,0.0762,99330.0,99329.0,0.28424451]
[1733649600385,0.0762,99330.0,99329.0,0.28524451]
[1733649601229,0.0762,99330.0,99329.0,0.28124451]
[1733649601395,0.0762,99330.0,99329.0,0.28224451]
[1733649601611,0.0762,99330.0,99329.0,0.37553005]
[1733649601938,0.0762,99330.0,99329.0,0.28224451]
[1733649602148,0.0762,99330.0,99329.0,0.28624451]
[1733649602373,0.0511314,99340.0,99330.0,0.15]
[1733649602582,0.15203,99330.0,99329.0,0.31664331]
[1733649602841,0.15203,99330.0,99329.0,0.6018914]
[1733649603049,0.15203,99330.0,99329.0,0.5958914]
[1733649603469,0.15203,99330.0,99329.0,0.5978914]
[1733649603680,0.15203,99330.0,99329.0,0.77846248]
[1733649603921,0.15203,99330.0,99329.0,0.77646248]
[1733649603922,0.15207,99330.0,99329.0,0.77646248]
[1733649604353,0.15207,99330.0,99329.0,0.6028914]
[1733649604766,0.15207,99330.0,99329.0,0.5998914]
[1733649605000,0.15207,99330.0,99329.0,0.6088914]
[1733649605441,0.15207,99330.0,99329.0,0.5958914]
[1733649605648,0.15207,99330.0,99329.0,0.6048914]
[1733649606569,0.15207,99330.0,99329.0,0.83052625]
[1733649606783,0.15207,99330.0,99329.0,0.83452625]
[1733649607952,0.15207,99330.0,99329.0,0.6088914]
[1733649608170,0.15207,99330.0,99329.0,0.7818914]
[1733649608391,0.15207,99330.0,99329.0,0.78052418]
[1733649610696,0.15207,99330.0,99329.0,0.75752418]
[1733649612589,0.15207,99330.0,99329.0,1.02882431]
[1733649613271,0.15207,99330.0,99329.0,1.02901681]
[1733649613725,0.15207,99330.0,99329.0,1.06929981]
[1733649614649,0.15207,99330.0,99329.0,0.79801542]
[1733649616058,0.15207,99330.0,99329.0,0.46680042]
[1733649616514,0.15207,99330.0,99329.0,0.29389659]
[1733649616744,0.15207,99330.0,99329.0,0.42651742]
[1733649617434,0.23437,99330.0,99329.0,0.42651742]
[1733649626999,0.23437,99330.0,99329.0,0.6073845]
[1733649627205,0.23437,99330.0,99329.0,0.42651742]
[1733649627431,0.23437,99330.0,99329.0,0.5983845]
[1733649627644,0.23437,99330.0,99329.0,0.41751742]
[1733649627876,0.23437,99330.0,99329.0,0.42651742]
[1733649628316,0.23437,99330.0,99329.0,0.42751461]
[1733649628529,0.23437,99330.0,99329.0,0.43151461]
[1733649628974,0.23437,99330.0,99329.0,0.61238748]
[1733649630281,0.23437,99330.0,99329.0,0.43151461]
[1733649630523,0.2847016,99330.0,99329.0,0.11302951]
[1733649632066,0.29535116,99330.0,99329.0,0.013]
[1733649634070,0.29535116,99330.0,99329.0,0.004]
[1733649634323,0.181215,99329.0,99327.0,0.03]
[1733649634535,0.181215,99329.0,99328.0,0.10002951]
[1733649634536,0.333245,99329.0,99328.0,0.10002951]
[1733649636975,0.333245,99329.0,99328.0,0.10502951]
[1733649637867,0.333245,99329.0,99328.0,0.10702951]
[1733649639445,0.343901,99329.0,99328.0,0.10702951]
[1733649644742,0.343901,99329.0,99328.0,0.10002951]
[1733649644998,0.343901,99329.0,99327.0,0.03]
[1733649645675,0.18123,99321.0,99320.0,0.0008658]
[1733649645894,0.41066,99321.0,99320.0,0.0008658]
[1733649646118,0.42131548,99321.0,99320.0,0.0008658]
[1733649647211,0.47131548,99321.0,99320.0,0.0008658]
[1733649647431,0.51871548,99321.0,99320.0,0.0008658]
[1733649647639,0.51871548,99321.0,99320.0,0.0038658]
[1733649647860,0.58870973,99321.0,99320.0,0.0038658]
[1733649648081,0.58870973,99321.0,99310.0,0.0008659]
[1733649648082,0.181248,99311.0,99310.0,0.0008659]
[1733649648325,0.406048,99311.0,99310.0,0.0008659]
[1733649648540,0.56883637,99311.0,99310.0,0.0008659]
[1733649650490,0.51983637,99311.0,99310.0,0.0008659]
[1733649650966,0.52183637,99311.0,99310.0,0.0008659]
[1733649651436,0.57183637,99311.0,99310.0,0.0008659]
[1733649652760,0.59223067,99311.0,99310.0,0.0008659]
[1733649653002,0.60210709,99311.0,99310.0,0.0008659]
[1733649653969,0.55210709,99311.0,99310.0,0.0008659]
[1733649654198,0.49223067,99311.0,99310.0,0.0008659]
[1733649654421,0.59223067,99311.0,99310.0,0.0008659]
[1733649657640,0.54223067,99311.0,99310.0,0.0008659]
[1733649658048,0.59223067,99311.0,99310.0,0.0008659]
[1733649661509,0.54223067,99311.0,99310.0,0.0008659]
[1733649662375,0.620599,99311.0,99310.0,0.0008659]
[1733649662582,0.670599,99311.0,99310.0,0.0008659]
[1733649663679,0.669599,99311.0,99310.0,0.0008659]
[1733649664109,0.671599,99311.0,99310.0,0.0008659]
[1733649664544,0.679599,99311.0,99310.0,0.0018659]
[1733649664757,0.671599,99311.0,99310.0,0.0008659]
[1733649664976,0.680599,99311.0,99310.0,0.0018659]
[1733649665653,0.826599,99311.0,99310.0,0.0018659]
[1733649666329,0.830599,99311.0,99310.0,0.0018659]
[1733649667390,0.93062851,99311.0,99310.0,0.0018659]
[1733649669932,0.75223067,99311.0,99310.0,0.0018659]
[1733649676206,0.85226018,99311.0,99310.0,0.0018659]
[1733649676430,0.85226018,99311.0,99300.0,0.0008658]
[1733649676431,0.508867,99301.0,99300.0,0.0008658]
[1733649676709,0.707497,99301.0,99300.0,0.0008658]
[1733649676888,0.91794167,99301.0,99300.0,8e-07]
[1733649677752,0.92305183,99301.0,99300.0,8e-07]
[1733649678435,0.92505183,99301.0,99300.0,8e-07]
[1733649679799,0.93494461,99301.0,99300.0,8e-07]
[1733649682271,1.46864461,99301.0,99300.0,8e-07]
[1733649682482,1.62186889,99301.0,99300.0,8e-07]
[1733649682704,1.62186889,99301.0,99254.0,0.0762]
[1733649682705,0.181351,99255.0,99254.0,0.0762]
[1733649682924,0.333381,99255.0,99254.0,0.0762]
[1733649683161,0.34375933,99255.0,99254.0,0.0762]
[1733649683853,0.34475933,99255.0,99254.0,0.0822]
[1733649684061,0.34475933,99255.0,99254.0,0.08225766]
[1733649685400,0.34475933,99255.0,99254.0,0.08525766]
[1733649687410,0.34475933,99255.0,99254.0,0.00905766]
[1733649687917,0.39475933,99255.0,99254.0,0.00905766]
[1733649689715,0.39375933,99255.0,99254.0,0.00305766]
[1733649690208,0.39375933,99255.0,99254.0,5.766e-05]
[1733649690682,0.39375933,99255.0,99254.0,0.00105766]
[1733649691405,0.45154309,99255.0,99254.0,0.00105766]
[1733649692291,0.39375933,99255.0,99254.0,0.00105766]
[1733649694345,0.39375933,99255.0,99254.0,5.766e-05]
[1733649694556,0.39475933,99255.0,99254.0,5.766e-05]
[1733649694969,0.39375933,99255.0,99254.0,5.766e-05]
[1733649695237,0.39675933,99255.0,99254.0,5.766e-05]
[1733649695458,0.39575933,99255.0,99254.0,5.766e-05]
[1733649695673,0.39975933,99255.0,99254.0,5.766e-05]
[1733649697810,0.34975933,99255.0,99254.0,5.766e-05]
[1733649698229,0.39975933,99255.0,99254.0,5.766e-05]
[1733649698414,0.34975933,99255.0,99254.0,5.766e-05]
[1733649699030,0.34575933,99255.0,99254.0,5.766e-05]
[1733649699264,0.34775933,99255.0,99254.0,5.766e-05]
[1733649699754,0.34575933,99255.0,99254.0,5.766e-05]
[1733649699959,0.34675933,99255.0,99254.0,5.766e-05]
[1733649701409,0.34675933,99255.0,99254.0,0.07755766]
[1733649701628,0.34675933,99255.0,99254.0,5.766e-05]
[1733649702045,0.16540833,99255.0,99254.0,0.10008717]
[1733649703606,0.16440833,99255.0,99254.0,0.10008717]
[1733649704039,0.16240833,99255.0,99254.0,0.10008717]
[1733649704487,0.16240833,99255.0,99254.0,0.10108717]
[1733649704717,0.16240833,99255.0,99254.0,0.17858717]
[1733649710986,0.16240833,99255.0,99254.0,0.22728717]
[1733649711667,0.16240833,99255.0,99254.0,0.22628717]
[1733649712095,0.16240833,99255.0,99254.0,0.22728717]
[1733649712303,0.16240833,99255.0,99254.0,0.22628717]
[1733649712524,0.16240833,99255.0,99254.0,0.23028717]
[1733649712727,0.16340833,99255.0,99254.0,0.23028717]
[1733649713134,0.15303,99255.0,99254.0,0.23028717]
[1733649713342,0.15303,99255.0,99254.0,0.23328717]
[1733649713752,0.15203,99255.0,99254.0,0.22628717]
[1733649714158,0.15303,99255.0,99254.0,0.23328717]
[1733649714279,0.15303,99255.0,99254.0,0.23028717]
[1733649714280,0.15203,99255.0,99254.0,0.23028717]
[1733649714489,0.15203,99255.0,99254.0,0.23328717]
[1733649714716,0.15303,99255.0,99254.0,0.40628717]
[1733649714927,0.15303,99255.0,99254.0,0.91987758]
[1733649715132,0.15303,99255.0,99254.0,0.964965]
[1733649715332,0.15203,99255.0,99254.0,0.73252788]
[1733649715766,0.15303,99255.0,99254.0,0.74986909]
[1733649716216,0.15303,99255.0,99254.0,0.74586909]
[1733649716657,0.15403,99255.0,99254.0,0.75186909]
[1733649717083,0.15303,99255.0,99254.0,0.74586909]
[1733649717520,0.15203,99255.0,99254.0,0.74286909]
[1733649717732,0.15303,99255.0,99254.0,0.74586909]
[1733649718189,0.15203,99255.0,99254.0,0.74286909]
[1733649718399,0.15203,99255.0,99254.0,0.75186909]
[1733649718400,0.15403,99255.0,99254.0,0.75186909]
[1733649718614,0.15403,99255.0,99254.0,0.74886909]
[1733649718850,0.15203,99255.0,99254.0,0.74286909]
[1733649719053,0.15303,99255.0,99254.0,0.75286909]
[1733649719289,0.15403,99255.0,99254.0,0.74986909]
[1733649719724,0.181286,99291.0,99254.0,0.74986909]
[1733649719725,0.181286,99291.0,99279.0,0.257006]
[1733649719939,0.181286,99291.0,99280.0,0.10002951]
[1733649720167,0.01044206,99290.0,99280.0,0.10002951]
[1733649720622,0.31260206,99290.0,99281.0,0.181303]
[1733649720834,0.31260206,99290.0,99282.0,0.10002951]
[1733649726565,0.31260206,99290.0,99286.0,0.181292]
[1733649726794,0.31260206,99290.0,99287.0,0.10002951]
[1733649727008,0.30216,99290.0,99288.0,0.26089]
[1733649727230,0.30216,99290.0,99289.0,0.10002951]
[1733649728787,0.30316,99290.0,99289.0,0.10402951]
[1733649729416,0.30316,99290.0,99289.0,0.10802951]
[1733649729623,0.31360971,99290.0,99289.0,0.10802951]
[1733649732606,0.31360971,99290.0,99289.0,0.11810349]
[1733649734032,0.31534251,99290.0,99289.0,0.11810349]
[1733649737142,0.31534251,99290.0,99289.0,0.10802951]
[1733649737363,0.31534251,99290.0,99289.0,0.23422951]
[1733649739468,0.0017716,99330.0,99320.0,0.15]
[1733649739690,0.00194442,99330.0,99329.0,0.43124451]
[1733649740012,0.0017314,99340.0,99336.0,0.181203]
[1733649740194,0.0017314,99340.0,99336.0,0.28123251]
[1733649741257,0.00319481,99337.0,99336.0,0.28523251]
[1733649742079,0.00319481,99337.0,99336.0,0.28923251]
[1733649742554,0.00219481,99337.0,99336.0,0.28523251]
[1733649742929,0.00319481,99337.0,99336.0,0.29323251]
[1733649743127,0.00219481,99337.0,99336.0,0.29113148]
[1733649744102,0.00319481,99337.0,99336.0,0.29913148]
[1733649744311,0.00219481,99337.0,99336.0,0.29113148]
[1733649744514,0.00319481,99337.0,99336.0,0.30413148]
[1733649744929,0.00319481,99337.0,99336.0,0.29904601]
[1733649745305,0.00319481,99337.0,99336.0,0.30404601]
[1733649747450,0.00219481,99337.0,99336.0,0.29504601]
[1733649747710,0.00319481,99337.0,99336.0,0.30404601]
[1733649748200,0.00319481,99337.0,99336.0,0.44904601]
[1733649748429,0.00319481,99337.0,99336.0,0.47604601]
[1733649748885,0.00319481,99337.0,99336.0,0.46304601]
[1733649748886,0.00219481,99337.0,99336.0,0.46304601]
[1733649749066,0.00219481,99337.0,99336.0,0.46704601]
[1733649749542,0.0017314,99340.0,99337.0,0.15]
[1733649749750,0.0017314,99340.0,99339.0,0.10002951]
[1733649749957,0.0017314,99340.0,99339.0,0.10103603]
[1733649752404,0.0027314,99340.0,99339.0,0.11403603]
[1733649754598,0.001731,99360.0,99339.0,0.11403603]